fUSD/lending_fUSD_20260513
["ID","MTS","AMOUNT","RATE_DAILY","PERIOD"]
[422200273,1778685032000,-150.0,0.000148,2]
[422200252,1778685032000,-500.0,0.00014725,2]
[422200253,1778685032000,-500.0,0.00014725,2]
[422200244,1778685032000,-500.0,0.00014725,2]
[422200246,1778685032000,-560.0,0.00014725,2]
[422200251,1778685032000,-560.0,0.00014725,2]
[422200247,1778685032000,-500.0,0.00014725,2]
[422200248,1778685032000,-500.0,0.00014725,2]
[422200249,1778685032000,-500.0,0.00014725,2]
[422200250,1778685032000,-500.0,0.00014725,2]
[422200254,1778685032000,-500.0,0.00014725,2]
[422200257,1778685032000,-560.0,0.00014725,2]
[422200256,1778685032000,-500.0,0.00014725,2]
[422200245,1778685032000,-500.0,0.00014725,2]
[422200259,1778685032000,-500.0,0.00014725,2]
[422200258,1778685032000,-500.0,0.00014725,2]
[422200271,1778685032000,-2000.0,0.00014799,2]
[422200268,1778685032000,-3826.7364,0.00014756,2]
[422200278,1778685032000,-400.0,0.000148,5]
[422200266,1778685032000,-566.77980264,0.00014725,2]
[422200267,1778685032000,-500.0,0.00014755,2]
[422200262,1778685032000,-560.0,0.00014725,2]
[422200265,1778685032000,-560.0,0.00014725,2]
[422200263,1778685032000,-341.64803734,0.00014725,2]
[422200260,1778685032000,-500.0,0.00014725,2]
[422200269,1778685032000,-446.53624138,0.00014797,2]
[422200255,1778685032000,-500.0,0.00014725,2]
[422200261,1778685032000,-500.0,0.00014725,2]
[422200340,1778685033000,-74065.0240031,0.000149,2]
[422200329,1778685033000,-150.0,0.00014899,2]
[422200331,1778685033000,-500.0,0.00014899,2]
[422200334,1778685033000,-500.0,0.00014899,2]
[422200336,1778685033000,-500.0,0.00014899,2]
[422200335,1778685033000,-500.0,0.00014899,2]
[422200347,1778685033000,-400.0,0.000149,5]
[422200338,1778685033000,-385056.69190914,0.000149,2]
[422200337,1778685033000,-500.0,0.00014899,2]
[422200332,1778685033000,-500.0,0.00014899,2]
[422200328,1778685033000,-526.33982411,0.00014899,2]
[422200345,1778685033000,-8138.76380718,0.000149,2]
[422200343,1778685033000,-191.98255793,0.000149,2]
[422200342,1778685033000,-962.17853804,0.000149,2]
[422200341,1778685033000,-166.78257067,0.000149,2]
[422200344,1778685033000,-5000.0,0.000149,2]
[422200346,1778685033000,-6298.07294783,0.000149,2]
[422200348,1778685033000,-8515.01806427,0.000149,2]
[422200349,1778685033000,-36728.3404308,0.000149,2]
[422200351,1778685033000,-476.81961555,0.00014902,2]
[422200330,1778685033000,-500.0,0.00014899,2]
[422200350,1778685033000,-483.14500593,0.000149,2]
[422200339,1778685033000,-49409.29508776,0.000149,2]
[422200327,1778685033000,-500.0,0.00014899,2]
[422200323,1778685033000,-500.0,0.00014899,2]
[422200326,1778685033000,-500.0,0.00014899,2]
[422200352,1778685033000,-210.54372636,0.00014902,2]
[422200304,1778685033000,-8515.01806427,0.00014889,2]
[422200312,1778685033000,-500.0,0.00014899,2]
[422200303,1778685033000,-8138.76380718,0.00014889,2]
[422200306,1778685033000,-393.0,0.00014896,2]
[422200310,1778685033000,-500.0,0.00014899,2]
[422200309,1778685033000,-500.0,0.00014899,2]
[422200307,1778685033000,-635.18083882,0.00014899,2]
[422200305,1778685033000,-1849.17,0.0001489,2]
[422200311,1778685033000,-500.0,0.00014899,2]
[422200308,1778685033000,-640.39212556,0.00014899,2]
[422200313,1778685033000,-191.07480105,0.00014899,2]
[422200321,1778685033000,-500.0,0.00014899,2]
[422200314,1778685033000,-500.0,0.00014899,2]
[422200318,1778685033000,-500.0,0.00014899,2]
[422200322,1778685033000,-500.0,0.00014899,2]
[422200317,1778685033000,-500.0,0.00014899,2]
[422200319,1778685033000,-500.0,0.00014899,2]
[422200316,1778685033000,-500.0,0.00014899,2]
[422200315,1778685033000,-500.0,0.00014899,2]
[422200320,1778685033000,-500.0,0.00014899,2]
[422200324,1778685033000,-500.0,0.00014899,2]
[422200325,1778685033000,-500.0,0.00014899,2]
[422200333,1778685033000,-500.0,0.00014899,2]
[422200353,1778685033000,-798.15209228,0.00014903,2]
[422200358,1778685033000,-1672.61888549,0.00014971,2]
[422200355,1778685033000,-485.85468374,0.00014936,2]
[422200383,1778685033000,-500.0,0.00014999,2]
[422200382,1778685033000,-500.0,0.00014999,2]
[422200386,1778685033000,-266.24319822,0.00014999,2]
[422200385,1778685033000,-500.0,0.00014877,2]
[422200387,1778685033000,-500.0,0.00014999,2]
[422200389,1778685033000,-91.31439431,0.00014999,2]
[422200393,1778685033000,-186.25847889,0.00014999,2]
[422200391,1778685033000,-0.35865972,0.00014999,2]
[422200388,1778685033000,-500.0,0.00014999,2]
[422200394,1778685033000,-500.0,0.00014877,2]
[422200390,1778685033000,-408.32694597,0.00014999,2]
[422200392,1778685033000,-158.19593107,0.00014999,2]
[422200396,1778685033000,-500.0,0.00014999,2]
[422200399,1778685033000,-500.0,0.00014999,2]
[422200398,1778685033000,-500.0,0.00014999,2]
[422200401,1778685033000,-500.0,0.00014999,2]
[422200403,1778685033000,-500.0,0.00014999,2]
[422200406,1778685033000,-82.94577915,0.00014999,2]
[422200397,1778685033000,-500.0,0.00014999,2]
[422200404,1778685033000,-500.0,0.00014999,2]
[422200400,1778685033000,-500.0,0.00014999,2]
[422200402,1778685033000,-208.60843707,0.00014999,2]
[422200354,1778685033000,-166.2,0.00014911,2]
[422200384,1778685033000,-233.75680178,0.00014999,2]
[422200380,1778685033000,-500.0,0.00014999,2]
[422200395,1778685033000,-320.1870973,0.00014999,2]
[422200379,1778685033000,-500.0,0.00014999,2]
[422200356,1778685033000,-403.0,0.00014956,2]
[422200357,1778685033000,-201.75301911,0.00014966,2]
[422200405,1778685033000,-351.23810858,0.00014999,2]
[422200363,1778685033000,-120.014834,0.00014997,2]
[422200381,1778685033000,-500.0,0.00014999,2]
[422200359,1778685033000,-498.17682034,0.00014971,2]
[422200364,1778685033000,-30.985166,0.00014997,2]
[422200365,1778685033000,-500.0,0.00014999,2]
[422200366,1778685033000,-206.09465376,0.00014999,2]
[422200369,1778685033000,-500.0,0.00014999,2]
[422200362,1778685033000,-151.0,0.00014997,2]
[422200367,1778685033000,-517.33826701,0.00014999,5]
[422200361,1778685033000,-185.69372234,0.0001499,2]
[422200360,1778685033000,-166.82,0.0001499,2]
[422200368,1778685033000,-579.97703457,0.00014999,5]
[422200374,1778685033000,-254.28762829,0.00014999,2]
[422200376,1778685033000,-500.0,0.00014877,2]
[422200373,1778685033000,-500.0,0.00014999,2]
[422200371,1778685033000,-500.0,0.00014999,2]
[422200375,1778685033000,-32.80845663,0.00014999,2]
[422200377,1778685033000,-467.19154337,0.00014999,2]
[422200372,1778685033000,-500.0,0.00014999,2]
[422200370,1778685033000,-500.0,0.00014999,2]
[422200378,1778685033000,-500.0,0.00014999,2]
[422200423,1778685034000,-407.4467712,0.00014999,2]
[422200417,1778685034000,-500.0,0.00014999,2]
[422200419,1778685034000,-500.0,0.00014999,2]
[422200420,1778685034000,-500.0,0.00014999,2]
[422200418,1778685034000,-500.0,0.00014999,2]
[422200416,1778685034000,-500.0,0.00014999,2]
[422200410,1778685034000,-500.0,0.00014999,2]
[422200411,1778685034000,-500.0,0.00014999,2]
[422200409,1778685034000,-500.0,0.00014999,2]
[422200412,1778685034000,-500.0,0.00014999,2]
[422200414,1778685034000,-500.0,0.00014999,2]
[422200415,1778685034000,-500.0,0.00014999,2]
[422200407,1778685034000,-231.05468307,0.00014877,2]
[422200408,1778685034000,-417.05422085,0.00014999,2]
[422200422,1778685034000,-500.0,0.00014999,2]
[422200413,1778685034000,-500.0,0.00014999,2]
[422200421,1778685034000,-500.0,0.00014999,2]
[422200442,1778685034000,-172.45434304,0.00014999,2]
[422200435,1778685034000,-500.0,0.00014999,2]
[422200425,1778685034000,-92.5532288,0.00014999,2]
[422200441,1778685034000,-500.0,0.00014999,2]
[422200439,1778685034000,-290.13509533,0.00014999,2]
[422200438,1778685034000,-24.44968407,0.00014999,2]
[422200437,1778685034000,-475.55031593,0.00014999,2]
[422200436,1778685034000,-500.0,0.00014999,2]
[422200434,1778685034000,-500.0,0.00014999,2]
[422200433,1778685034000,-500.0,0.00014999,2]
[422200440,1778685034000,-209.86490467,0.00014999,2]
[422200432,1778685034000,-63.77180733,0.00014999,2]
[422200428,1778685034000,-500.0,0.00014999,2]
[422200426,1778685034000,-178.59857853,0.00014999,2]
[422200429,1778685034000,-500.0,0.00014999,2]
[422200427,1778685034000,-500.0,0.00014999,2]
[422200430,1778685034000,-500.0,0.00014999,2]
[422200424,1778685034000,-500.0,0.00014877,2]
[422200431,1778685034000,-436.22819267,0.00014999,2]
[422200458,1778685038000,-2243.97673559,0.00015,5]
[422200460,1778685038000,-150.0,0.00015,2]
[422200457,1778685038000,-61.06954166,0.00015,5]
[422200455,1778685038000,-300.0,0.00014999,2]
[422200451,1778685038000,-500.0,0.00014877,2]
[422200449,1778685038000,-427.0266034,0.00014877,2]
[422200452,1778685038000,-256.09571324,0.00014999,2]
[422200448,1778685038000,-340.51391774,0.00014877,2]
[422200450,1778685038000,-72.9733966,0.00014877,2]
[422200453,1778685038000,-300.0,0.00014999,2]
[422200447,1778685038000,-159.48608226,0.00014877,2]
[422200446,1778685038000,-127.26391774,0.00014877,2]
[422200445,1778685038000,-372.73608226,0.00014877,2]
[422200461,1778685038000,-2033.70387951,0.00015,2]
[422200454,1778685038000,-300.0,0.00014999,2]
[422200456,1778685038000,-322.50177111,0.00014999,2]
[422200476,1778685038000,-1000.0,0.00015,2]
[422200459,1778685038000,-385.95372275,0.00015,5]
[422200480,1778685038000,-8673269.01409578,0.00015,2]
[422200479,1778685038000,-1414.5876627,0.00015,2]
[422200478,1778685038000,-1131.693862,0.00015,2]
[422200475,1778685038000,-5401.9889658,0.00015,2]
[422200477,1778685038000,-1000.0,0.00015,2]
[422200472,1778685038000,-200.86501189,0.00015,2]
[422200474,1778685038000,-351.91,0.00015,2]
[422200462,1778685038000,-1290.08569442,0.00015,2]
[422200470,1778685038000,-151.0,0.00015,2]
[422200464,1778685038000,-48645.5,0.00015,2]
[422200467,1778685038000,-3019698.8946517,0.00015,2]
[422200469,1778685038000,-500.0,0.00015,3]
[422200463,1778685038000,-376.90741591,0.00015,2]
[422200465,1778685038000,-3460.0,0.00015,2]
[422200473,1778685038000,-32443.4196844,0.00015,2]
[422200572,1778685040000,-1188.44991006,0.00015,2]
[422200575,1778685040000,-16411.37530448,0.00015,2]
[422200574,1778685040000,-208499.43530978,0.00015,2]
[422200573,1778685040000,-774.31587832,0.00015,2]
[422200620,1778685043000,-3881.47583311,0.00015,2]
[422200627,1778685046000,-351.714966,0.00015,2]
[422200629,1778685046000,-8871.54243385,0.00015,2]
[422200628,1778685046000,-2442.93676033,0.00015,2]
[422200626,1778685046000,-8769.6,0.00015,2]
[422200625,1778685046000,-16734.53838795,0.00015,2]
[422200624,1778685046000,-737.18575986,0.00015,2]
[422200631,1778685216000,350.0,0.00027397,120]
[422200632,1778685224000,330.0,8.219e-05,3]
[422200638,1778685650000,181.59,6.984e-05,2]
[422200639,1778685650000,181.59,9.22e-05,2]
[422200640,1778686003000,-215.9148903,0.00010946,2]
[422200641,1778686137000,330.0,8.219e-05,3]
[422200670,1778686232000,-65.73500655,0.00013693,2]
[422200680,1778686232000,-24.4991792,0.00013834,2]
[422200679,1778686232000,-161.67,0.00013794,2]
[422200662,1778686232000,-58.57572887,0.00013692,2]
[422200666,1778686232000,-185.51699044,0.00013693,2]
[422200663,1778686232000,-300.0,0.00013692,2]
[422200664,1778686232000,-31.79699044,0.00013693,2]
[422200669,1778686232000,-1728.70844309,0.00013693,2]
[422200668,1778686232000,-205.55655036,0.00013693,2]
[422200667,1778686232000,-114.47300956,0.00013693,2]
[422200661,1778686232000,-1050.0,0.00013692,2]
[422200665,1778686232000,-149.79300956,0.00013693,2]
[422200660,1778686232000,-91.42427113,0.00013692,2]
[422200659,1778686232000,-274.37,0.00013679,2]
[422200651,1778686232000,-150.0,0.00013488,2]
[422200658,1778686232000,-605.0,0.00013671,2]
[422200656,1778686232000,-149.47747457,0.00013666,2]
[422200657,1778686232000,-652.32252543,0.00013666,2]
[422200654,1778686232000,-256.33,0.00013527,2]
[422200655,1778686232000,-150.0,0.00013603,2]
[422200653,1778686232000,-150.0,0.00013488,2]
[422200649,1778686232000,-150.0,0.00013488,2]
[422200650,1778686232000,-150.0,0.00013488,2]
[422200648,1778686232000,-250.0,0.00012041,2]
[422200646,1778686232000,-44.0251097,0.00010946,2]
[422200647,1778686232000,-181.59,0.00011457,2]
[422200652,1778686232000,-150.0,0.00013488,2]
[422200671,1778686232000,-166.63,0.00013693,2]
[422200687,1778686232000,-250.0,0.00014,2]
[422200676,1778686232000,-107.0692952,0.00013699,2]
[422200722,1778686232000,-144.91723769,0.0001445,2]
[422200721,1778686232000,-282.78978291,0.00014443,2]
[422200716,1778686232000,-166.66,0.00014384,2]
[422200705,1778686232000,-150.0,0.00014247,2]
[422200697,1778686232000,-89.16031347,0.00014179,2]
[422200672,1778686232000,-2929.42,0.00013693,2]
[422200717,1778686232000,-77.78031347,0.000144,5]
[422200719,1778686232000,-150.0,0.0001441,2]
[422200699,1778686232000,-60.83968653,0.00014179,2]
[422200720,1778686232000,-213.59021709,0.00014443,2]
[422200718,1778686232000,-822.21968653,0.000144,5]
[422200702,1778686232000,-166.66,0.00014247,2]
[422200713,1778686232000,-400.0,0.000143,5]
[422200715,1778686232000,-166.63,0.00014378,2]
[422200710,1778686232000,-150.0,0.00014295,2]
[422200685,1778686232000,-11.01968653,0.00013949,2]
[422200694,1778686232000,-166.66,0.0001411,2]
[422200677,1778686232000,-166.66,0.00013699,2]
[422200674,1778686232000,-2500.0,0.00013699,2]
[422200675,1778686232000,-92.9307048,0.00013699,2]
[422200678,1778686232000,-150.0,0.00013718,2]
[422200673,1778686232000,-183.36,0.00013696,2]
[422200686,1778686232000,-166.66,0.00013973,2]
[422200689,1778686232000,-150.0,0.00014064,2]
[422200692,1778686232000,-166.5,0.00014103,2]
[422200684,1778686232000,-138.98031347,0.00013949,2]
[422200683,1778686232000,-166.66,0.00013836,2]
[422200681,1778686232000,-125.5008208,0.00013834,2]
[422200735,1778686238000,-350.0,0.00014517,2]
[422200745,1778686238000,-710.08381224,0.000146,5]
[422200741,1778686238000,-756.67329122,0.0001455,7]
[422200744,1778686238000,-496.38,0.00014569,2]
[422200742,1778686238000,-88.63527617,0.0001455,7]
[422200743,1778686238000,-152.0,0.00014567,7]
[422200740,1778686238000,-276.07716977,0.0001455,7]
[422200739,1778686238000,-537.09470384,0.0001455,7]
[422200737,1778686238000,-496.38,0.00014526,2]
[422200734,1778686238000,-267.57170969,0.000145,5]
[422200738,1778686238000,-496.38,0.00014531,2]
[422200731,1778686238000,-125.63181954,0.00014486,2]
[422200732,1778686238000,-370.74818046,0.00014486,2]
[422200733,1778686238000,-1132.42829031,0.000145,5]
[422200730,1778686238000,-201.46276231,0.00014464,2]
[422200728,1778686238000,-351.46276231,0.0001445,2]
[422200729,1778686238000,-48.53723769,0.00014464,2]
[422200736,1778686238000,-150.0,0.00014525,2]
[422200759,1778686238000,-213.52501256,0.00014625,2]
[422200777,1778686238000,-378.26953422,0.00014755,2]
[422200746,1778686238000,-1189.91618776,0.000146,5]
[422200747,1778686238000,-496.38,0.00014609,2]
[422200782,1778686238000,-496.38,0.00014763,2]
[422200781,1778686238000,-150.0,0.00014756,2]
[422200779,1778686238000,-121.73046578,0.00014755,2]
[422200771,1778686238000,-496.38,0.00014701,2]
[422200776,1778686238000,-18.38046578,0.00014744,2]
[422200769,1778686238000,-126.62046578,0.000147,5]
[422200767,1778686238000,-2173.37953422,0.000147,5]
[422200765,1778686238000,-82.86085814,0.00014684,2]
[422200773,1778686238000,-477.99953422,0.00014744,2]
[422200755,1778686238000,-150.0,0.00014625,2]
[422200761,1778686238000,-150.0,0.0001464,2]
[422200751,1778686238000,-249.55254933,0.00014615,2]
[422200762,1778686238000,-152.0,0.00014646,7]
[422200763,1778686238000,-496.38,0.00014658,2]
[422200753,1778686238000,-284.63445457,0.00014625,2]
[422200749,1778686238000,-246.82745067,0.00014615,2]
[422200764,1778686238000,-413.51914186,0.00014684,2]
[422200757,1778686238000,-150.0,0.00014625,2]
[422200828,1778686239000,-5000.0,0.000149,2]
[422200827,1778686239000,-327.70369186,0.000149,2]
[422200825,1778686239000,-581.22829812,0.00014899,2]
[422200823,1778686239000,-500.0,0.00014899,2]
[422200818,1778686239000,-500.0,0.00014899,2]
[422200819,1778686239000,-150.60061714,0.00014899,2]
[422200817,1778686239000,-500.0,0.00014899,2]
[422200820,1778686239000,-500.0,0.00014899,2]
[422200822,1778686239000,-500.0,0.00014899,2]
[422200826,1778686239000,-482537.2499,0.000149,2]
[422200824,1778686239000,-500.0,0.00014899,2]
[422200829,1778686239000,-653.45513034,0.000149,2]
[422200838,1778686239000,-500.0,0.00014935,2]
[422200832,1778686239000,-212.89282656,0.000149,2]
[422200834,1778686239000,-3565.04253164,0.000149,2]
[422200833,1778686239000,-201.60506988,0.000149,2]
[422200831,1778686239000,-4951.22736772,0.000149,2]
[422200837,1778686239000,-500.0,0.00014935,2]
[422200835,1778686239000,-350.0,0.00014921,2]
[422200836,1778686239000,-500.0,0.00014935,2]
[422200821,1778686239000,-500.0,0.00014899,2]
[422200839,1778686239000,-500.0,0.00014935,2]
[422200851,1778686239000,-500.0,0.00014935,2]
[422200841,1778686239000,-500.0,0.00014935,2]
[422200850,1778686239000,-500.0,0.00014935,2]
[422200830,1778686239000,-400.0,0.000149,5]
[422200815,1778686239000,-4951.22736772,0.00014886,2]
[422200806,1778686239000,-3565.04253164,0.00014844,2]
[422200814,1778686239000,-200.0,0.0001488,2]
[422200784,1778686239000,-65.78284281,0.00014787,2]
[422200786,1778686239000,-283.599994,0.00014787,2]
[422200788,1778686239000,-146.99716319,0.00014787,2]
[422200791,1778686239000,-150.0,0.000148,2]
[422200790,1778686239000,-509.49,0.00014789,2]
[422200792,1778686239000,-150.0,0.000148,2]
[422200796,1778686239000,-400.0,0.000148,5]
[422200795,1778686239000,-3565.04253164,0.000148,2]
[422200797,1778686239000,-3565.04253164,0.00014811,2]
[422200849,1778686239000,-500.0,0.00014935,2]
[422200794,1778686239000,-4951.22736774,0.000148,2]
[422200798,1778686239000,-5238.14857876,0.00014812,2]
[422200816,1778686239000,-3565.04253164,0.00014889,2]
[422200800,1778686239000,-3565.04253164,0.00014822,2]
[422200802,1778686239000,-496.43946358,0.00014831,2]
[422200801,1778686239000,-4951.22736772,0.00014829,2]
[422200813,1778686239000,-3565.04253164,0.00014878,2]
[422200807,1778686239000,-350.0,0.00014854,2]
[422200805,1778686239000,-4951.22736772,0.00014843,2]
[422200803,1778686239000,-3565.04253164,0.00014833,2]
[422200812,1778686239000,-4951.22736772,0.00014871,2]
[422200804,1778686239000,-496.38,0.00014837,2]
[422200810,1778686239000,-3565.04253164,0.00014867,2]
[422200809,1778686239000,-4951.22736772,0.00014857,2]
[422200811,1778686239000,-150.0,0.00014871,2]
[422200808,1778686239000,-3565.04253164,0.00014856,2]
[422200799,1778686239000,-4951.22736772,0.00014814,2]
[422200843,1778686239000,-500.0,0.00014935,2]
[422200889,1778686239000,-500.0,0.00014999,2]
[422200844,1778686239000,-500.0,0.00014935,2]
[422200878,1778686239000,-500.0,0.00014999,2]
[422200875,1778686239000,-500.0,0.00014999,2]
[422200877,1778686239000,-306.6696981,0.00014999,2]
[422200876,1778686239000,-500.0,0.00014999,2]
[422200874,1778686239000,-500.0,0.00014999,2]
[422200882,1778686239000,-500.0,0.00014999,2]
[422200883,1778686239000,-500.0,0.00014999,2]
[422200887,1778686239000,-500.0,0.00014999,2]
[422200884,1778686239000,-500.0,0.00014999,2]
[422200885,1778686239000,-502.56578458,0.00014999,2]
[422200888,1778686239000,-500.0,0.00014999,2]
[422200892,1778686239000,-500.0,0.00014999,2]
[422200893,1778686239000,-500.0,0.00014999,2]
[422200886,1778686239000,-500.0,0.00014999,2]
[422200891,1778686239000,-500.0,0.00014999,2]
[422200895,1778686239000,-500.0,0.00014999,2]
[422200898,1778686239000,-500.2665976,0.00014999,2]
[422200894,1778686239000,-500.0,0.00014999,2]
[422200897,1778686239000,-500.0,0.00014999,2]
[422200896,1778686239000,-160.59133501,0.00014999,2]
[422200901,1778686239000,-500.0,0.00014999,2]
[422200902,1778686239000,-500.0,0.00014999,2]
[422200900,1778686239000,-500.0,0.00014999,2]
[422200899,1778686239000,-500.0,0.00014999,2]
[422200840,1778686239000,-500.0,0.00014935,2]
[422200872,1778686239000,-500.0,0.00014999,2]
[422200870,1778686239000,-500.0,0.00014999,2]
[422200890,1778686239000,-233.99417586,0.00014999,2]
[422200881,1778686239000,-500.0,0.00014999,2]
[422200845,1778686239000,-500.0,0.00014935,2]
[422200842,1778686239000,-500.0,0.00014935,2]
[422200848,1778686239000,-500.0,0.00014935,2]
[422200879,1778686239000,-500.0,0.00014999,2]
[422200846,1778686239000,-500.0,0.00014935,2]
[422200852,1778686239000,-500.0,0.00014935,2]
[422200853,1778686239000,-500.0,0.00014935,2]
[422200855,1778686239000,-263.16091522,0.00014935,2]
[422200857,1778686239000,-171.07198398,0.00014986,2]
[422200856,1778686239000,-150.0,0.00014986,2]
[422200854,1778686239000,-500.0,0.00014935,2]
[422200858,1778686239000,-150.0,0.00014986,2]
[422200859,1778686239000,-233.62423755,0.00014986,2]
[422200847,1778686239000,-500.0,0.00014935,2]
[422200862,1778686239000,-151.0,0.00014997,2]
[422200860,1778686239000,-180.44403207,0.0001499,2]
[422200873,1778686239000,-500.0,0.00014999,2]
[422200880,1778686239000,-500.0,0.00014999,2]
[422200867,1778686239000,-500.0,0.00014999,2]
[422200868,1778686239000,-500.0,0.00014999,2]
[422200869,1778686239000,-500.0,0.00014999,2]
[422200871,1778686239000,-500.0,0.00014999,2]
[422200865,1778686239000,-500.0,0.00014999,2]
[422200864,1778686239000,-298.05,0.00014998,2]
[422200863,1778686239000,-222.17,0.00014998,2]
[422200861,1778686239000,-180.44403207,0.0001499,2]
[422200866,1778686239000,-500.0,0.00014999,2]
[422200919,1778686240000,-431.69745624,0.00014999,2]
[422200914,1778686240000,-500.0,0.00014999,2]
[422200928,1778686240000,-500.0,0.00014999,2]
[422200934,1778686240000,-500.0,0.00014999,2]
[422200926,1778686240000,-500.0,0.00014999,2]
[422200922,1778686240000,-500.0,0.00014999,2]
[422200913,1778686240000,-500.0,0.00014999,2]
[422200915,1778686240000,-500.0,0.00014999,2]
[422200916,1778686240000,-509.52,0.00014999,2]
[422200908,1778686240000,-500.0,0.00014999,2]
[422200911,1778686240000,-500.0,0.00014999,2]
[422200909,1778686240000,-500.0,0.00014999,2]
[422200906,1778686240000,-500.0,0.00014999,2]
[422200907,1778686240000,-500.0,0.00014999,2]
[422200910,1778686240000,-500.0,0.00014999,2]
[422200905,1778686240000,-192.0106329,0.00014999,2]
[422200903,1778686240000,-500.0,0.00014999,2]
[422200904,1778686240000,-500.0,0.00014999,2]
[422200924,1778686240000,-500.0,0.00014999,2]
[422200917,1778686240000,-500.0,0.00014999,2]
[422200933,1778686240000,-500.0,0.00014999,2]
[422200931,1778686240000,-500.0,0.00014999,2]
[422200948,1778686240000,-2075.73057974,0.00015,2]
[422200951,1778686240000,-2090.40897658,0.00015,2]
[422200952,1778686240000,-33097.09056031,0.00015,2]
[422200947,1778686240000,-3758999.55019725,0.00015,2]
[422200950,1778686240000,-7338931.74469153,0.00015,2]
[422200949,1778686240000,-8080.85641291,0.00015,2]
[422200930,1778686240000,-500.0,0.00014999,2]
[422200938,1778686240000,-500.0,0.00014999,2]
[422200944,1778686240000,-2774.0,0.00015,5]
[422200957,1778686240000,-396.815,0.00015,2]
[422200937,1778686240000,-500.0,0.00014999,2]
[422200945,1778686240000,-150.0,0.00015,2]
[422200939,1778686240000,-552.54434627,0.00014999,2]
[422200942,1778686240000,-300.0,0.00014999,2]
[422200941,1778686240000,-300.0,0.00014999,2]
[422200940,1778686240000,-300.0,0.00014999,2]
[422200936,1778686240000,-500.0,0.00014999,2]
[422200946,1778686240000,-150.0,0.00015,2]
[422200935,1778686240000,-500.0,0.00014999,2]
[422200921,1778686240000,-500.0,0.00014999,2]
[422200932,1778686240000,-542.23182778,0.00014999,2]
[422200943,1778686240000,-2607.0,0.00015,5]
[422200972,1778686243000,-1372.20103721,0.00015,2]
[422200973,1778686243000,-11679.81651685,0.00015,2]
[422200974,1778686243000,-219261.62562562,0.00015,2]
[422200977,1778686243000,-4896.46376358,0.00015,2]
[422200976,1778686243000,-11322.96478012,0.00015,2]
[422200979,1778686243000,-28023.74913751,0.00015,2]
[422200978,1778686243000,-16934.24066084,0.00015,2]
[422200975,1778686243000,-9383.21539825,0.00015,2]
[422201020,1778686246000,-79200.0,0.00015,2]
[422201021,1778686246000,-1189.049,0.00015,2]
[422201025,1778686246000,-15843.28409177,0.00015,2]
[422201022,1778686246000,-3129.54980145,0.00015,2]
[422201024,1778686246000,-410.19486052,0.00015,2]
[422201023,1778686246000,-550.26380044,0.00015,2]
[422201124,1778686427000,154.67,7.624e-05,2]
[422201135,1778687213000,154.67,6.835e-05,2]
[422201144,1778687386000,342.00326022,0.00027397,120]
[422201171,1778687432000,-855.62856,0.00013833,2]
[422201170,1778687432000,-796.45191897,0.00013821,2]
[422201168,1778687432000,-170.76191897,0.00013819,2]
[422201182,1778687432000,-75480.38643939,0.00014444,2]
[422201174,1778687432000,-246.96,0.00014112,2]
[422201185,1778687432000,-246.96,0.00014448,2]
[422201173,1778687432000,-179.2,0.00013927,2]
[422201180,1778687432000,-179.2,0.00014384,2]